[Event "46th GRE-chT Premier 2018"]
[Site "Rio Achaia"]
[Date "2018.07.11"]
[Round "3"]
[White "Stefanou, Dimitrios"]
[Black "Paraskakis, Filippos"]
[Result "1-0"]
[ECO "A58"]
[WhiteElo "1824"]
[BlackElo "1344"]
[Annotator "NA"]
[PlyCount "91"]
[EventDate "2018.07.10"]
[EventType "team-tourn"]
[EventCountry "GRE"]
[SourceTitle "playchess.com"]
[Source "ChessBase"]
[SourceQuality "1"]
[TimeControl "40/5400+30:1800+30"]

1. d4 {[%emt 0:00:00]} Nf6 {[%emt 0:00:00]} 2. c4 {[%emt 0:00:00]} c5 {[%emt 0:00:00]} 3. d5 {[%emt 0:01:54]} b5 {[%emt 0:00:00]} 4. cxb5 {[%emt 0:00:05]} a6 {[%emt 0:00:00]} 5. bxa6 {[%emt 0:00:11]} g6 {[%emt 0:00:18]} 6. Nc3 {[%emt 0:00:13]} Bg7 {[%emt 0:00:14]} 7. e4 {[%emt 0:01:33]} Bxa6 {[%emt 0:00:45]} 8. Bxa6 {[%emt 0:00:50]} Rxa6 {[%emt 0:03:40]} 9. Nf3 {[%emt 0:01:44]} d6 {[%emt 0:00:33]} 10. O-O {[%emt 0:00:22]} O-O {[%emt 0:00:15]} 11. h3 {[%emt 0:01:37]} Nbd7 {[%emt 0:02:04]} 12. Qc2 {[%emt 0:03:13]} Qa5 {[%emt 0:06:30]} 13. Nd2 {[%emt 0:11:05]} Rb8 {[%emt 0:24:21]} 14. Nc4 {[%emt 0:13:28]} Qb4 {[%emt 0:00:59]} 15. Qe2 {[%emt 0:00:55]} Nb6 {[%emt 0:01:14]} 16. Nxd6 {[%emt 0:28:31]} Ra5 {[%emt 0:10:24]} 17. a3 {[%emt 0:06:12]} Qb3 {[%emt 0:07:22]} 18. Ndb5 {[%emt 0:00:51]} Nc4 {[%emt 0:02:26]} 19. a4 {[%emt 0:01:06]} Nd7 {[%emt 0:09:46]} 20. Bf4 {[%emt 0:10:21]} Rb7 {[%emt 0:08:40]} 21. Rab1 {[%emt 0:01:18]} Ndb6 {[%emt 0:02:52]} 22. Qd1 {[%emt 0:04:44]} Qxd1 {[%emt 0:01:54]} 23. Rfxd1 {[%emt 0:00:19]} Nxa4 {[%emt 0:01:25]} 24. Nxa4 {[%emt 0:00:48]} Raxb5 {[%emt 0:00:24]} 25. Rdc1 {[%emt 0:01:36]} Nxb2 {[%emt 0:07:28]} 26. Nxc5 {[%emt 0:00:25]} Ra7 {[%emt 0:03:16]} 27. Nd3 {[%emt 0:04:16]} Ra8 {[%emt 0:02:42]} 28. Nxb2 {[%emt 0:02:17]} Rxb2 {[%emt 0:01:33]} 29. Rxb2 {[%emt 0:00:12]} Bxb2 {[%emt 0:00:05]} 30. Rc7 {[%emt 0:00:11]} g5 {[%emt 0:01:23]} 31. Bg3 {[%emt 0:01:41]} Kf8 {[%emt 0:01:12]} 32. Kf1 {[%emt 0:01:05]} h5 {[%emt 0:00:40]} 33. Rb7 {[%emt 0:00:24]} Ra1+ {[%emt 0:00:57]} 34. Ke2 {[%emt 0:00:08]} Bf6 {[%emt 0:00:35]} 35. Rb8+ {[%emt 0:00:31]} Kg7 {[%emt 0:00:37]} 36. e5 {[%emt 0:00:46]} Ra2+ {[%emt 0:00:23]} 37. Ke3 {[%emt 0:01:09]} Ra3+ {[%emt 0:00:08]} 38. Kd4 {[%emt 0:00:30]} Ra4+ {[%emt 0:00:27]} 39. Kc5 {[%emt 0:00:39]} Bxe5 {[%emt 0:00:48]} 40. Bxe5+ {[%emt 0:00:00]} f6 {[%emt 0:00:00]} 41. Bd4 {[%emt 0:02:56]} Ra5+ {[%emt 0:00:39]} 42. Kc6 {[%emt 0:00:27]} Ra6+ {[%emt 0:01:05]} 43. Rb6 {[%emt 0:00:51]} Ra4 {[%emt 0:00:16]} 44. Be3 {[%emt 0:01:35]} Ra2 {[%emt 0:03:05]} 45. Kd7 {[%emt 0:02:07]} Kf7 {[%emt 0:00:16]} 46. Re6 {[%emt 0:01:00]} 1-0

[Event "46th GRE-chT Premier 2018"]
[Site "Rio Achaia"]
[Date "2018.07.11"]
[Round "3"]
[White "Makris, Spyridon-Dionysios"]
[Black "Papadopoulos, Zisis"]
[Result "1/2-1/2"]
[ECO "D35"]
[WhiteElo "1799"]
[BlackElo "1834"]
[Annotator "NA"]
[PlyCount "99"]
[EventDate "2018.07.10"]
[EventType "team-tourn"]
[EventCountry "GRE"]
[SourceTitle "playchess.com"]
[Source "ChessBase"]
[SourceQuality "1"]
[TimeControl "40/5400+30:1800+30"]

1. d4 {[%emt 0:00:00]} Nf6 {[%emt 0:00:00]} 2. c4 {[%emt 0:00:00]} e6 {[%emt 0:00:42]} 3. Nc3 {[%emt 0:00:00]} d5 {[%emt 0:00:12]} 4. cxd5 {[%emt 0:00:00]} exd5 {[%emt 0:00:06]} 5. Bg5 {[%emt 0:00:00]} Be7 {[%emt 0:00:18]} 6. e3 {[%emt 0:00:21]} c6 {[%emt 0:00:12]} 7. Bd3 {[%emt 0:00:08]} Nbd7 {[%emt 0:00:25]} 8. h3 {[%emt 0:00:12]} O-O {[%emt 0:00:36]} 9. Nf3 {[%emt 0:00:04]} Re8 {[%emt 0:00:23]} 10. O-O {[%emt 0:00:09]} Ne4 {[%emt 0:09:03]} 11. Bf4 {[%emt 0:01:12]} Ndf6 {[%emt 0:02:23]} 12. Qc2 {[%emt 0:01:04]} Bf8 {[%emt 0:06:41]} 13. Ne5 {[%emt 0:02:32]} g6 {[%emt 0:02:56]} 14. f3 {[%emt 0:01:47]} Nxc3 {[%emt 0:03:35]} 15. bxc3 {[%emt 0:00:06]} Nh5 {[%emt 0:03:04]} 16. Bh2 {[%emt 0:03:02]} Bh6 {[%emt 0:11:23]} 17. f4 {[%emt 0:02:17]} Nf6 {[%emt 0:21:27]} 18. Rae1 {[%emt 0:02:55]} Ne4 {[%emt 0:02:08]} 19. Bxe4 {[%emt 0:40:02]} dxe4 {[%emt 0:00:27]} 20. g4 {[%emt 0:00:55]} f6 {[%emt 0:03:26]} 21. Nc4 {[%emt 0:00:24]} Qd5 {[%emt 0:01:18]} 22. Nd2 {[%emt 0:01:31]} f5 {[%emt 0:01:33]} 23. g5 {[%emt 0:01:02]} Bf8 {[%emt 0:00:15]} 24. c4 {[%emt 0:01:30]} Qf7 {[%emt 0:01:11]} 25. Rb1 {[%emt 0:05:09]} Be6 {[%emt 0:03:21]} 26. a4 {[%emt 0:01:17]} b6 {[%emt 0:03:05]} 27. Bg3 {[%emt 0:03:29]} Rab8 {[%emt 0:00:49]} 28. Rfd1 {[%emt 0:03:24]} Red8 {[%emt 0:02:45]} 29. Be1 {[%emt 0:03:59]} a5 {[%emt 0:01:06]} 30. Rdc1 {[%emt 0:00:20]} Ba3 {[%emt 0:03:07]} 31. Rd1 {[%emt 0:00:04]} Rdc8 {[%emt 0:02:31]} 32. Ra1 {[%emt 0:00:23]} Bb4 {[%emt 0:00:14]} 33. Rdc1 {[%emt 0:00:36]} b5 {[%emt 0:02:00]} 34. c5 {[%emt 0:01:07]} Bxd2 {[%emt 0:02:05]} 35. Qxd2 {[%emt 0:00:04]} b4 {[%emt 0:00:47]} 36. Qb2 {[%emt 0:00:25]} Bd5 {[%emt 0:02:05]} 37. Rc2 {[%emt 0:01:04]} Qa7 {[%emt 0:00:44]} 38. Rd1 {[%emt 0:01:05]} Qa6 {[%emt 0:01:44]} 39. Rcc1 {[%emt 0:00:30]} Kg7 {[%emt 0:01:09]} 40. h4 {[%emt 0:00:00]} Rh8 {[%emt 0:00:00]} 41. Kg2 {[%emt 0:02:51]} h6 {[%emt 0:05:56]} 42. gxh6+ {[%emt 0:00:16]} Rxh6 {[%emt 0:00:15]} 43. Kg1 {[%emt 0:00:41]} Kf7 {[%emt 0:02:59]} 44. Kg2 {[%emt 0:01:11]} Rbh8 {[%emt 0:15:11]} 45. Kg1 {[%emt 0:00:43]} Ke6 {[%emt 0:01:08]} 46. Bf2 {[%emt 0:00:55]} Qb7 {[%emt 0:00:56]} 47. Be1 {[%emt 0:01:30]} Qa6 {[%emt 0:02:11]} 48. Bf2 {[%emt 0:00:14]} Qa7 {[%emt 0:06:55]} 49. Be1 {[%emt 0:00:14]} Qa6 {[%emt 0:00:59]} 50. Bf2 {[%emt 0:00:48]} 1/2-1/2

[Event "46th GRE-chT Premier 2018"]
[Site "Rio Achaia"]
[Date "2018.07.11"]
[Round "3"]
[White "Eleftheriou, Georgios"]
[Black "Koukouliatas, Sotirios Georgios"]
[Result "1-0"]
[ECO "A04"]
[WhiteElo "1790"]
[BlackElo "1130"]
[Annotator "NA"]
[PlyCount "59"]
[EventDate "2018.07.10"]
[EventType "team-tourn"]
[EventCountry "GRE"]
[SourceTitle "playchess.com"]
[Source "ChessBase"]
[SourceQuality "1"]
[TimeControl "40/5400+30:1800+30"]

1. Nf3 {[%emt 0:00:02]} g6 {[%emt 0:00:00]} 2. e3 {[%emt 0:00:30]} Bg7 {[%emt 0:00:05]} 3. d4 {[%emt 0:00:20]} d5 {[%emt 0:00:27]} 4. Bd3 {[%emt 0:02:13]} Nf6 {[%emt 0:03:05]} 5. Ne5 {[%emt 0:01:42]} O-O {[%emt 0:01:58]} 6. Nd2 {[%emt 0:01:33]} e6 {[%emt 0:03:31]} 7. f4 {[%emt 0:00:31]} Bd7 {[%emt 0:01:34]} 8. Qf3 {[%emt 0:01:13]} c5 {[%emt 0:05:02]} 9. c3 {[%emt 0:00:17]} c4 {[%emt 0:00:59]} 10. Bc2 {[%emt 0:00:20]} Nc6 {[%emt 0:01:28]} 11. h4 {[%emt 0:01:25]} b5 {[%emt 0:02:14]} 12. h5 {[%emt 0:03:02]} a5 {[%emt 0:11:01]} 13. hxg6 {[%emt 0:02:49]} fxg6 {[%emt 0:01:29]} 14. Qh3 {[%emt 0:01:32]} Qc8 {[%emt 0:17:01]} 15. Ndf3 {[%emt 0:01:16]} b4 {[%emt 0:10:44]} 16. g4 {[%emt 0:01:31]} Be8 {[%emt 0:03:01]} 17. Ng5 {[%emt 0:00:50]} h6 {[%emt 0:03:26]} 18. Ngf3 {[%emt 0:02:36]} Ne4 {[%emt 0:03:21]} 19. Bd2 {[%emt 0:05:36]} bxc3 {[%emt 0:06:39]} 20. Bxc3 {[%emt 0:00:56]} a4 {[%emt 0:01:23]} 21. Nxc6 {[%emt 0:04:41]} Qxc6 {[%emt 0:01:47]} 22. Bb4 {[%emt 0:00:46]} Nd6 {[%emt 0:02:18]} 23. Ne5 {[%emt 0:01:29]} Qb6 {[%emt 0:02:50]} 24. a3 {[%emt 0:00:38]} Kh7 {[%emt 0:04:38]} 25. g5 {[%emt 0:04:34]} Bf7 {[%emt 0:04:13]} 26. Nd7 {[%emt 0:07:06]} Qd8 {[%emt 0:01:40]} 27. Nf6+ {[%emt 0:00:32]} Kh8 {[%emt 0:00:59]} 28. Qxh6+ {[%emt 0:00:28]} Bxh6 {[%emt 0:00:34]} 29. Rxh6+ {[%emt 0:00:05]} Kg7 {[%emt 0:00:37]} 30. Rh7# {[%emt 0:00:42]} 1-0

[Event "46th GRE-chT Premier 2018"]
[Site "Rio Achaia"]
[Date "2018.07.11"]
[Round "3"]
[White "Mastrakouli, Evagelia"]
[Black "Kouta, Vasiliki"]
[Result "1-0"]
[ECO "A53"]
[WhiteElo "1779"]
[BlackElo "1350"]
[Annotator "NA"]
[PlyCount "47"]
[EventDate "2018.07.10"]
[EventType "team-tourn"]
[EventCountry "GRE"]
[SourceTitle "playchess.com"]
[Source "ChessBase"]
[SourceQuality "1"]
[TimeControl "40/5400+30:1800+30"]

1. d4 {[%emt 0:00:30]} Nf6 {[%emt 0:01:39]} 2. c4 {[%emt 0:00:45]} d6 {[%emt 0:00:39]} 3. Nc3 {[%emt 0:00:50]} g6 {[%emt 0:01:23]} 4. g3 {[%emt 0:00:27]} Bg7 {[%emt 0:00:26]} 5. Bg2 {[%emt 0:00:09]} c6 {[%emt 0:04:54]} 6. Nf3 {[%emt 0:01:26]} Qc7 {[%emt 0:02:51]} 7. O-O {[%emt 0:01:27]} O-O {[%emt 0:00:08]} 8. Bf4 {[%emt 0:03:41]} b6 {[%emt 0:13:20]} 9. c5 {[%emt 0:06:18]} Nbd7 {[%emt 0:03:40]} 10. cxd6 {[%emt 0:02:31]} exd6 {[%emt 0:00:02]} 11. Rc1 {[%emt 0:02:05]} Qb8 {[%emt 0:13:02]} 12. Ng5 {[%emt 0:07:21]} Bb7 {[%emt 0:02:31]} 13. Nce4 {[%emt 0:02:15]} Ne8 {[%emt 0:08:43]} 14. Nxd6 {[%emt 0:01:37]} Nxd6 {[%emt 0:08:55]} 15. Ne4 {[%emt 0:00:36]} Qd8 {[%emt 0:02:53]} 16. Nxd6 {[%emt 0:02:35]} Ba6 {[%emt 0:02:41]} 17. Bxc6 {[%emt 0:01:35]} Rb8 {[%emt 0:03:09]} 18. Ne4 {[%emt 0:11:44]} Rc8 {[%emt 0:02:35]} 19. b4 {[%emt 0:14:31]} Re8 {[%emt 0:06:10]} 20. Nd6 {[%emt 0:09:38]} Bxe2 {[%emt 0:01:30]} 21. Qb3 {[%emt 0:00:24]} Qf6 {[%emt 0:06:03]} 22. Nxe8 {[%emt 0:03:06]} Rxe8 {[%emt 0:00:56]} 23. Bxd7 {[%emt 0:03:00]} Rd8 {[%emt 0:00:17]} 24. Rfe1 1-0

[Event "46th GRE-chT Premier 2018"]
[Site "Rio Achaia"]
[Date "2018.07.11"]
[Round "3"]
[White "Fragkos, Vasileios"]
[Black "Apostolidis, Angelos"]
[Result "1-0"]
[ECO "C50"]
[WhiteElo "1774"]
[BlackElo "1117"]
[Annotator "NA"]
[PlyCount "113"]
[EventDate "2018.07.10"]
[EventType "team-tourn"]
[EventCountry "GRE"]
[SourceTitle "playchess.com"]
[Source "ChessBase"]
[SourceQuality "1"]
[TimeControl "40/5400+30:1800+30"]

1. e4 {[%emt 0:00:00]} e5 {[%emt 0:00:00]} 2. Nf3 {[%emt 0:00:00]} Nc6 {[%emt 0:00:00]} 3. Bc4 {[%emt 0:00:00]} h6 {[%emt 0:00:30]} 4. O-O {[%emt 0:00:07]} Nf6 {[%emt 0:00:12]} 5. d3 {[%emt 0:01:12]} Bc5 {[%emt 0:00:20]} 6. c3 {[%emt 0:00:13]} d5 {[%emt 0:14:24]} 7. exd5 {[%emt 0:00:18]} Nxd5 {[%emt 0:00:32]} 8. a4 {[%emt 0:00:39]} Nf6 {[%emt 0:02:54]} 9. b4 {[%emt 0:03:09]} Bd6 {[%emt 0:01:00]} 10. Re1 {[%emt 0:03:22]} Nd7 {[%emt 0:03:04]} 11. Nbd2 {[%emt 0:01:27]} O-O {[%emt 0:02:02]} 12. Ne4 {[%emt 0:00:18]} Re8 {[%emt 0:01:12]} 13. Be3 {[%emt 0:09:13]} Nf6 {[%emt 0:06:21]} 14. Ng3 {[%emt 0:00:55]} Bg4 {[%emt 0:05:11]} 15. h3 {[%emt 0:00:22]} Be6 {[%emt 0:03:53]} 16. Bxe6 {[%emt 0:03:24]} Rxe6 {[%emt 0:00:09]} 17. Nf5 {[%emt 0:01:26]} Ne7 {[%emt 0:01:40]} 18. N3h4 {[%emt 0:01:02]} Qd7 {[%emt 0:03:43]} 19. Qd2 {[%emt 0:05:16]} Nxf5 {[%emt 0:00:41]} 20. Nxf5 {[%emt 0:00:06]} Re7 {[%emt 0:00:45]} 21. Nxe7+ {[%emt 0:00:09]} Qxe7 {[%emt 0:00:29]} 22. Rab1 {[%emt 0:02:36]} b6 {[%emt 0:00:21]} 23. d4 {[%emt 0:01:11]} Qd7 {[%emt 0:00:51]} 24. dxe5 {[%emt 0:03:34]} Bxe5 {[%emt 0:00:31]} 25. Qxd7 {[%emt 0:00:07]} Nxd7 {[%emt 0:00:04]} 26. Bd4 {[%emt 0:00:20]} Bd6 {[%emt 0:00:41]} 27. a5 {[%emt 0:18:15]} Rb8 {[%emt 0:00:51]} 28. axb6 {[%emt 0:00:32]} axb6 {[%emt 0:00:31]} 29. Re4 {[%emt 0:01:19]} Ra8 {[%emt 0:01:23]} 30. Rbe1 {[%emt 0:00:24]} Kf8 {[%emt 0:00:45]} 31. g3 {[%emt 0:02:46]} g6 {[%emt 0:01:35]} 32. Rh4 {[%emt 0:00:28]} h5 {[%emt 0:00:34]} 33. Rhe4 {[%emt 0:01:03]} Rd8 {[%emt 0:01:00]} 34. Kg2 {[%emt 0:02:04]} Ra8 {[%emt 0:00:30]} 35. g4 {[%emt 0:00:19]} hxg4 {[%emt 0:00:57]} 36. hxg4 {[%emt 0:03:53]} Rd8 {[%emt 0:01:00]} 37. Rh1 {[%emt 0:00:19]} f6 {[%emt 0:01:31]} 38. Rh8+ {[%emt 0:00:22]} Kf7 {[%emt 0:00:24]} 39. Rxd8 {[%emt 0:00:06]} Ne5 {[%emt 0:00:44]} 40. Bxe5 {[%emt 0:00:00]} fxe5 {[%emt 0:00:00]} 41. Rc4 {[%emt 0:00:19]} Ke6 {[%emt 0:01:01]} 42. Rc6 {[%emt 0:00:28]} Ke7 {[%emt 0:00:29]} 43. Rdxd6 {[%emt 0:00:16]} cxd6 {[%emt 0:00:09]} 44. Rxb6 {[%emt 0:00:04]} Kd7 {[%emt 0:00:35]} 45. c4 {[%emt 0:00:13]} Kc7 {[%emt 0:00:22]} 46. c5 {[%emt 0:00:10]} dxc5 {[%emt 0:01:25]} 47. bxc5 {[%emt 0:00:05]} Kd7 {[%emt 0:00:34]} 48. Rxg6 {[%emt 0:00:06]} Kc7 {[%emt 0:00:34]} 49. Rd6 {[%emt 0:00:04]} Kb7 {[%emt 0:00:41]} 50. g5 {[%emt 0:00:03]} Kc7 {[%emt 0:00:45]} 51. g6 {[%emt 0:00:10]} e4 {[%emt 0:00:04]} 52. g7 {[%emt 0:00:03]} e3 {[%emt 0:00:23]} 53. fxe3 {[%emt 0:00:06]} Kb7 {[%emt 0:00:38]} 54. g8=Q {[%emt 0:00:19]} Kc7 {[%emt 0:00:13]} 55. Qd8+ {[%emt 0:00:22]} Kb7 {[%emt 0:00:19]} 56. Rb6+ {[%emt 0:00:03]} Ka7 {[%emt 0:00:32]} 57. Qb8# {[%emt 0:00:04]} 1-0

[Event "46th GRE-chT Premier 2018"]
[Site "Rio Achaia"]
[Date "2018.07.11"]
[Round "3"]
[White "Antoniadou, Paraskevi"]
[Black "Michna, Marta"]
[Result "0-1"]
[ECO "B07"]
[WhiteElo "1764"]
[BlackElo "2322"]
[Annotator "NA"]
[PlyCount "64"]
[EventDate "2018.07.10"]
[EventType "team-tourn"]
[EventCountry "GRE"]
[SourceTitle "playchess.com"]
[Source "ChessBase"]
[SourceQuality "1"]
[TimeControl "40/5400+30:1800+30"]

1. e4 {[%emt 0:00:00]} d6 {[%emt 0:01:16]} 2. d4 {[%emt 0:00:11]} Nf6 {[%emt 0:00:52]} 3. Nc3 {[%emt 0:00:25]} c6 {[%emt 0:00:08]} 4. Be3 {[%emt 0:00:15]} Qa5 {[%emt 0:01:16]} 5. f3 {[%emt 0:01:13]} e5 {[%emt 0:02:42]} 6. Nge2 {[%emt 0:00:59]} h5 {[%emt 0:02:09]} 7. Qd2 {[%emt 0:05:32]} Nbd7 {[%emt 0:01:09]} 8. dxe5 {[%emt 0:03:21]} dxe5 {[%emt 0:00:14]} 9. Nc1 {[%emt 0:03:25]} Be7 {[%emt 0:04:49]} 10. Nb3 {[%emt 0:01:42]} Qc7 {[%emt 0:00:08]} 11. Qf2 {[%emt 0:01:19]} b6 {[%emt 0:03:40]} 12. Bc4 {[%emt 0:04:49]} Nf8 {[%emt 0:09:44]} 13. a4 {[%emt 0:04:26]} Bb4 {[%emt 0:01:09]} 14. O-O {[%emt 0:05:39]} Be6 {[%emt 0:00:44]} 15. Bxe6 {[%emt 0:02:06]} Nxe6 {[%emt 0:00:03]} 16. Rfd1 {[%emt 0:04:16]} O-O {[%emt 0:07:14]} 17. a5 {[%emt 0:04:11]} bxa5 {[%emt 0:01:27]} 18. Nc5 {[%emt 0:01:09]} Nxc5 {[%emt 0:04:47]} 19. Bxc5 {[%emt 0:00:07]} Rfd8 {[%emt 0:07:30]} 20. Rxd8+ {[%emt 0:03:32]} Rxd8 {[%emt 0:01:10]} 21. h4 {[%emt 0:07:43]} Rd7 {[%emt 0:11:51]} 22. Kh2 {[%emt 0:07:07]} Nh7 {[%emt 0:04:00]} 23. Qe3 {[%emt 0:07:23]} Nf8 {[%emt 0:03:41]} 24. Ra4 {[%emt 0:03:28]} Qd8 {[%emt 0:05:02]} 25. Kg3 {[%emt 0:01:33]} Ng6 {[%emt 0:00:25]} 26. Kf2 {[%emt 0:04:38]} Qxh4+ {[%emt 0:03:19]} 27. Kf1 {[%emt 0:00:34]} Bxc3 {[%emt 0:02:49]} 28. Qxc3 {[%emt 0:00:16]} Qh1+ {[%emt 0:00:06]} 29. Kf2 {[%emt 0:02:10]} Nf4 {[%emt 0:00:58]} 30. Qe1 {[%emt 0:03:07]} Qxg2+ {[%emt 0:00:10]} 31. Ke3 {[%emt 0:00:06]} Qxc2 {[%emt 0:00:12]} 32. Qxa5 {[%emt 0:01:13]} Rd3# {[%emt 0:00:08] Kd4} 0-1

[Event "46th GRE-chT Premier 2018"]
[Site "Rio Achaia"]
[Date "2018.07.11"]
[Round "3"]
[White "Petraki, Argiro"]
[Black "Grafakou, Sotiria-Aphrodite"]
[Result "0-1"]
[ECO "B36"]
[WhiteElo "1729"]
[BlackElo "1617"]
[Annotator "NA"]
[PlyCount "82"]
[EventDate "2018.07.10"]
[EventType "team-tourn"]
[EventCountry "GRE"]
[SourceTitle "playchess.com"]
[Source "ChessBase"]
[SourceQuality "1"]
[TimeControl "40/5400+30:1800+30"]

1. e4 {[%emt 0:00:00]} c5 {[%emt 0:00:00]} 2. Nf3 {[%emt 0:00:00]} Nc6 {[%emt 0:00:10]} 3. d4 {[%emt 0:00:00]} cxd4 {[%emt 0:00:19]} 4. Nxd4 {[%emt 0:00:00]} g6 {[%emt 0:00:30]} 5. c4 {[%emt 0:00:00]} Nf6 {[%emt 0:00:56]} 6. Nc3 {[%emt 0:00:07]} d6 {[%emt 0:00:24]} 7. Be3 {[%emt 0:00:07]} Bg7 {[%emt 0:00:34]} 8. Be2 {[%emt 0:00:06]} O-O {[%emt 0:03:58]} 9. Nc2 {[%emt 0:05:31]} Nd7 {[%emt 0:03:37]} 10. Qd2 {[%emt 0:04:40]} f5 {[%emt 0:06:01]} 11. exf5 {[%emt 0:02:29]} Rxf5 {[%emt 0:00:26]} 12. O-O {[%emt 0:09:20]} Rf8 {[%emt 0:03:26]} 13. Rad1 {[%emt 0:05:04]} Nf6 {[%emt 0:03:33]} 14. c5 {[%emt 0:16:03]} d5 {[%emt 0:20:28]} 15. b4 {[%emt 0:13:07]} e6 {[%emt 0:05:41]} 16. Bh6 {[%emt 0:06:48]} Ne7 {[%emt 0:12:07]} 17. Bxg7 {[%emt 0:01:00]} Kxg7 {[%emt 0:00:13]} 18. f4 {[%emt 0:00:42]} b6 {[%emt 0:08:48]} 19. cxb6 {[%emt 0:10:10]} Qxb6+ {[%emt 0:02:29]} 20. Kh1 {[%emt 0:00:27]} Bd7 {[%emt 0:04:44]} 21. Bf3 {[%emt 0:06:13]} Rac8 {[%emt 0:03:32]} 22. Rfe1 {[%emt 0:02:34]} Qc7 {[%emt 0:03:38]} 23. Re3 {[%emt 0:07:03]} Qxf4 {[%emt 0:03:59]} 24. g3 {[%emt 0:05:51]} Qd6 {[%emt 0:03:06]} 25. g4 {[%emt 0:02:01]} Qf4 {[%emt 0:03:33]} 26. Rg1 {[%emt 0:02:08]} Nc6 {[%emt 0:02:32]} 27. g5 {[%emt 0:00:39]} Ne8 {[%emt 0:01:02]} 28. Rg4 {[%emt 0:00:27]} Qb8 {[%emt 0:01:49]} 29. b5 {[%emt 0:00:40]} Ne7 {[%emt 0:01:52]} 30. Nd4 {[%emt 0:01:01]} e5 {[%emt 0:00:35]} 31. Rh4 {[%emt 0:00:11]} e4 {[%emt 0:00:17]} 32. Bg2 {[%emt 0:00:37]} Nd6 {[%emt 0:01:01]} 33. Re2 {[%emt 0:00:44]} Nc4 {[%emt 0:00:29]} 34. Qe1 {[%emt 0:00:31]} Ne5 {[%emt 0:00:14]} 35. Rh6 {[%emt 0:00:26]} Nd3 {[%emt 0:00:41]} 36. Qa1 {[%emt 0:00:30]} Qe5 {[%emt 0:00:21]} 37. Nf3 {[%emt 0:00:11]} Qxc3 {[%emt 0:00:12]} 38. Qxc3+ {[%emt 0:00:09]} Rxc3 {[%emt 0:00:05]} 39. Nd2 {[%emt 0:00:40]} Rc1+ {[%emt 0:00:17]} 40. Bf1 {[%emt 0:00:00]} Bg4 {[%emt 0:00:00]} 41. Re3 {[%emt 0:01:46]} Nf5 {[%emt 0:01:08]} 0-1

[Event "46th GRE-chT Premier 2018"]
[Site "Rio Achaia"]
[Date "2018.07.11"]
[Round "3"]
[White "Karavitaki, Evaggelia"]
[Black "Tsivelekidou, Evgenia"]
[Result "0-1"]
[ECO "C02"]
[WhiteElo "1723"]
[BlackElo "2007"]
[Annotator "NA"]
[PlyCount "94"]
[EventDate "2018.07.10"]
[EventType "team-tourn"]
[EventCountry "GRE"]
[SourceTitle "playchess.com"]
[Source "ChessBase"]
[SourceQuality "1"]
[TimeControl "40/5400+30:1800+30"]

1. e4 {[%emt 0:00:00]} e6 {[%emt 0:00:00]} 2. d4 {[%emt 0:00:00]} d5 {[%emt 0:00:00]} 3. e5 {[%emt 0:00:05]} c5 {[%emt 0:00:00]} 4. c3 {[%emt 0:00:03]} Qb6 {[%emt 0:00:00]} 5. Nf3 {[%emt 0:00:48]} Bd7 {[%emt 0:00:09]} 6. a3 {[%emt 0:01:58]} Bb5 {[%emt 0:00:50]} 7. Bxb5+ {[%emt 0:01:19]} Qxb5 {[%emt 0:00:15]} 8. Qe2 {[%emt 0:00:13]} Qxe2+ {[%emt 0:01:28]} 9. Kxe2 {[%emt 0:00:08]} Nc6 {[%emt 0:01:26]} 10. Be3 {[%emt 0:02:02]} cxd4 {[%emt 0:01:15]} 11. cxd4 {[%emt 0:00:34]} Nge7 {[%emt 0:01:30]} 12. Nbd2 {[%emt 0:09:43]} Nf5 {[%emt 0:03:15]} 13. Rac1 {[%emt 0:03:33]} a5 {[%emt 0:04:54]} 14. Nb3 {[%emt 0:05:48]} a4 {[%emt 0:07:37]} 15. Nc5 {[%emt 0:00:36]} Bxc5 {[%emt 0:02:02]} 16. Rxc5 {[%emt 0:00:18]} Kd7 {[%emt 0:02:35]} 17. Rhc1 {[%emt 0:03:42]} h5 {[%emt 0:06:07]} 18. h4 {[%emt 0:10:43]} f6 {[%emt 0:05:41]} 19. exf6 {[%emt 0:04:42]} gxf6 {[%emt 0:00:07]} 20. Kd3 {[%emt 0:02:44]} Ra5 {[%emt 0:09:54]} 21. Bf4 {[%emt 0:11:02]} Nd6 {[%emt 0:07:43]} 22. Bxd6 {[%emt 0:04:34]} Kxd6 {[%emt 0:00:10]} 23. Rxa5 {[%emt 0:05:22]} Nxa5 {[%emt 0:00:07]} 24. Nd2 {[%emt 0:00:19]} Rg8 {[%emt 0:06:21]} 25. g3 {[%emt 0:00:27]} e5 {[%emt 0:03:33]} 26. dxe5+ {[%emt 0:02:27]} fxe5 {[%emt 0:00:12]} 27. Ke3 {[%emt 0:01:39]} e4 {[%emt 0:06:39]} 28. Rc3 {[%emt 0:14:48]} Nc6 {[%emt 0:03:05]} 29. Ke2 {[%emt 0:02:17]} Nd4+ {[%emt 0:06:24]} 30. Ke3 {[%emt 0:01:04]} Ne6 {[%emt 0:00:31]} 31. Ke2 {[%emt 0:01:22]} Ke5 {[%emt 0:03:03]} 32. Re3 {[%emt 0:02:46]} Nd4+ {[%emt 0:02:20]} 33. Kd1 {[%emt 0:00:26]} Rf8 {[%emt 0:01:32]} 34. f4+ {[%emt 0:00:34]} Ke6 {[%emt 0:02:16]} 35. Nxe4 {[%emt 0:02:03]} dxe4 {[%emt 0:00:21]} 36. Rxe4+ {[%emt 0:00:02]} Kd5 {[%emt 0:00:09]} 37. Re5+ {[%emt 0:00:07]} Kc4 {[%emt 0:00:26]} 38. Rxh5 {[%emt 0:00:28]} Rd8 {[%emt 0:00:55]} 39. Ke1 {[%emt 0:02:42]} Kb3 {[%emt 0:00:43]} 40. Rh7 {[%emt 0:00:00]} b5 {[%emt 0:00:00]} 41. h5 {[%emt 0:01:38]} Kxb2 {[%emt 0:01:28]} 42. g4 {[%emt 0:00:48]} Kxa3 {[%emt 0:00:23]} 43. h6 {[%emt 0:00:11]} b4 {[%emt 0:01:28]} 44. g5 {[%emt 0:00:48]} b3 {[%emt 0:01:18]} 45. Rb7 {[%emt 0:00:29]} b2 {[%emt 0:00:29]} 46. Rxb2 {[%emt 0:00:22]} Kxb2 {[%emt 0:00:08]} 47. g6 {[%emt 0:00:04]} Nf5 {[%emt 0:00:26]} 0-1